[Event "Titled Tuesday Blitz October 25 Late 2022"]
[White "Pakleza, Zbigniew"]
[Black "Moreno Perez, Tobias Sebastian"]
[WhiteFideId "1119290"]
[BlackFideId "186716"]
[WhiteElo "2411"]
[BlackElo "2494"]
[Result "1-0"]
[Round "11"]
[TimeControl "180+1"]
[Date "2022.10.26"]
[WhiteClock "0:00:05"]
[BlackClock "0:00:15"]

1. d4 {[%clk 0:03:00]}  d5 {[%clk 0:02:59]} 2. Bf4 {[%clk 0:03:00]}  Nf6 {[%clk 0:02:58]} 3. e3 {[%clk 0:03:00]}  c5 {[%clk 0:02:58]} 4. c3 {[%clk 0:03:00]}  Nc6 {[%clk 0:02:58]} 5. Nd2 {[%clk 0:03:00]}  cxd4 {[%clk 0:02:57]} 6. cxd4 {[%clk 0:02:57]}  a6 {[%clk 0:02:54]} 7. Bd3 {[%clk 0:02:50]}  Bg4 {[%clk 0:02:54]} 8. f3 {[%clk 0:02:44]}  Bd7 {[%clk 0:02:47]} 9. Ne2 {[%clk 0:02:42]}  e6 {[%clk 0:02:46]} 10. O-O {[%clk 0:02:41]}  Rc8 {[%clk 0:02:46]} 11. h3 {[%clk 0:02:37]}  Nb4 {[%clk 0:02:40]} 12. Bb1 {[%clk 0:02:26]}  Bb5 {[%clk 0:02:38]} 13. Nb3 {[%clk 0:02:19]}  Bd6 {[%clk 0:02:25]} 14. Bxd6 {[%clk 0:02:17]}  Qxd6 {[%clk 0:02:26]} 15. a3 {[%clk 0:02:16]}  Nc6 {[%clk 0:02:24]} 16. Bd3 {[%clk 0:02:08]}  Bxd3 {[%clk 0:02:19]} 17. Qxd3 {[%clk 0:02:09]}  O-O {[%clk 0:02:19]} 18. Nc5 {[%clk 0:02:06]}  Rc7 {[%clk 0:02:09]} 19. Rac1 {[%clk 0:01:55]}  e5 {[%clk 0:02:03]} 20. b4 {[%clk 0:01:49]}  exd4 {[%clk 0:01:54]} 21. Nxd4 {[%clk 0:01:46]}  Ne5 {[%clk 0:01:50]} 22. Qb3 {[%clk 0:01:02]}  Nc4 {[%clk 0:01:48]} 23. Rcd1 {[%clk 0:01:00]}  Re8 {[%clk 0:01:25]} 24. e4 {[%clk 0:00:52]}  Qf4 {[%clk 0:01:01]} 25. Rfe1 {[%clk 0:00:45]}  Nd6 {[%clk 0:00:28]} 26. Ne2 {[%clk 0:00:28]}  Qh4 {[%clk 0:00:19]} 27. Qe3 {[%clk 0:00:03]}  Nf5 {[%clk 0:00:19]} 28. Qf2 {[%clk 0:00:03]}  Qxf2+ {[%clk 0:00:13]} 29. Kxf2 {[%clk 0:00:04]}  dxe4 {[%clk 0:00:14]} 30. fxe4 {[%clk 0:00:05]}  Nxe4+ {[%clk 0:00:15]} 31. Nxe4 {[%clk 0:00:05]}  Rxe4 {[%clk 0:00:15]} 32. Rd8+ {[%clk 0:00:05]} 1-0


[Site "https://www.chess.com"]

[Event "Titled Tuesday Blitz October 25 Late 2022"]
[White "Phillips, Rene"]
[Black "Martinez Ramirez, Lennis"]
[WhiteFideId "2056275"]
[BlackFideId "3509079"]
[WhiteElo "2044"]
[BlackElo "2374"]
[Result "0-1"]
[Round "11"]
[TimeControl "180+1"]
[Date "2022.10.26"]
[WhiteClock "0:00:55"]
[BlackClock "0:01:46"]

1. Nf3 {[%clk 0:03:00]}  d5 {[%clk 0:02:59]} 2. d4 {[%clk 0:03:01]}  c6 {[%clk 0:02:59]} 3. Bf4 {[%clk 0:03:01]}  Nf6 {[%clk 0:02:58]} 4. e3 {[%clk 0:03:02]}  g6 {[%clk 0:02:57]} 5. Nbd2 {[%clk 0:03:00]}  Bg7 {[%clk 0:02:57]} 6. Bd3 {[%clk 0:02:58]}  Nbd7 {[%clk 0:02:54]} 7. Ne5 {[%clk 0:02:56]}  O-O {[%clk 0:02:53]} 8. h4 {[%clk 0:02:55]}  Nh5 {[%clk 0:02:49]} 9. g4 {[%clk 0:02:50]}  Nxf4 {[%clk 0:02:48]} 10. exf4 {[%clk 0:02:51]}  f6 {[%clk 0:02:41]} 11. Nxd7 {[%clk 0:02:48]}  Qxd7 {[%clk 0:02:42]} 12. f3 {[%clk 0:02:46]}  e5 {[%clk 0:02:40]} 13. fxe5 {[%clk 0:02:46]}  fxe5 {[%clk 0:02:40]} 14. dxe5 {[%clk 0:02:32]}  Bxe5 {[%clk 0:02:34]} 15. O-O {[%clk 0:02:30]}  Qe7 {[%clk 0:02:25]} 16. Qe2 {[%clk 0:02:27]}  Bd4+ {[%clk 0:02:21]} 17. Kg2 {[%clk 0:02:19]}  Qxh4 {[%clk 0:02:09]} 18. Rh1 {[%clk 0:02:14]}  Qg5 {[%clk 0:02:01]} 19. c3 {[%clk 0:02:10]}  Be3 {[%clk 0:01:57]} 20. Nf1 {[%clk 0:02:06]}  Bxg4 {[%clk 0:01:55]} 21. fxg4 {[%clk 0:01:55]}  Rf2+ {[%clk 0:01:54]} 22. Qxf2 {[%clk 0:01:54]}  Bxf2 {[%clk 0:01:54]} 23. Kxf2 {[%clk 0:01:55]}  Qxg4 {[%clk 0:01:53]} 24. Re1 {[%clk 0:01:00]}  Rf8+ {[%clk 0:01:50]} 25. Ke3 {[%clk 0:00:59]}  Qf4+ {[%clk 0:01:50]} 26. Ke2 {[%clk 0:00:56]}  Qf3+ {[%clk 0:01:49]} 27. Kd2 {[%clk 0:00:55]}  Qxh1 {[%clk 0:01:46]} 0-1


[Site "https://www.chess.com"]

[Event "Titled Tuesday Blitz October 25 Late 2022"]
[White "Polster, Christian"]
[Black "Stanisz, Patryk"]
[WhiteFideId "12965081"]
[BlackFideId "1123106"]
[WhiteElo "2209"]
[BlackElo "2069"]
[Result "1-0"]
[Round "11"]
[TimeControl "180+1"]
[Date "2022.10.26"]
[WhiteClock "0:00:15"]
[BlackClock "0:00:01"]

1. e4 {[%clk 0:02:57]}  c5 {[%clk 0:02:58]} 2. Nc3 {[%clk 0:02:55]}  Nc6 {[%clk 0:02:56]} 3. Nge2 {[%clk 0:02:54]}  g6 {[%clk 0:02:55]} 4. d4 {[%clk 0:02:51]}  cxd4 {[%clk 0:02:53]} 5. Nxd4 {[%clk 0:02:52]}  Bg7 {[%clk 0:02:53]} 6. Be3 {[%clk 0:02:51]}  d6 {[%clk 0:02:19]} 7. Qd2 {[%clk 0:02:49]}  Nf6 {[%clk 0:02:16]} 8. f3 {[%clk 0:02:47]}  Qa5 {[%clk 0:02:06]} 9. O-O-O {[%clk 0:02:40]}  a6 {[%clk 0:01:57]} 10. Kb1 {[%clk 0:02:38]}  Nxd4 {[%clk 0:01:53]} 11. Bxd4 {[%clk 0:02:38]}  b5 {[%clk 0:01:45]} 12. Bxf6 {[%clk 0:02:20]}  Bxf6 {[%clk 0:01:42]} 13. Nd5 {[%clk 0:02:20]}  Qxd2 {[%clk 0:01:26]} 14. Rxd2 {[%clk 0:02:09]}  O-O {[%clk 0:01:00]} 15. Nxf6+ {[%clk 0:02:07]}  exf6 {[%clk 0:01:01]} 16. Rxd6 {[%clk 0:02:06]}  Kg7 {[%clk 0:01:02]} 17. c4 {[%clk 0:01:56]}  Be6 {[%clk 0:00:57]} 18. cxb5 {[%clk 0:01:25]}  axb5 {[%clk 0:00:58]} 19. b3 {[%clk 0:01:25]}  b4 {[%clk 0:00:35]} 20. Be2 {[%clk 0:01:17]}  Rfc8 {[%clk 0:00:22]} 21. Rhd1 {[%clk 0:01:11]}  Rc3 {[%clk 0:00:19]} 22. R1d3 {[%clk 0:00:58]}  Rc5 {[%clk 0:00:03]} 23. Rb6 {[%clk 0:00:44]}  Rac8 {[%clk 0:00:03]} 24. Rd2 {[%clk 0:00:40]}  Rc1+ {[%clk 0:00:03]} 25. Kb2 {[%clk 0:00:39]}  Rg1 {[%clk 0:00:03]} 26. Bd1 {[%clk 0:00:30]}  Re1 {[%clk 0:00:02]} 27. Rxb4 {[%clk 0:00:28]}  Rg1 {[%clk 0:00:01]} 28. a4 {[%clk 0:00:27]}  Ra8 {[%clk 0:00:01]} 29. Rb7 {[%clk 0:00:26]}  Rh1 {[%clk 0:00:01]} 30. h3 {[%clk 0:00:26]}  Rf1 {[%clk 0:00:01]} 31. Rd6 {[%clk 0:00:19]}  Re1 {[%clk 0:00:01]} 32. Rxe6 {[%clk 0:00:19]}  Rxd1 {[%clk 0:00:02]} 33. Rc6 {[%clk 0:00:19]}  Rd2+ {[%clk 0:00:02]} 34. Rc2 {[%clk 0:00:20]}  Rd3 {[%clk 0:00:01]} 35. Ka3 {[%clk 0:00:15]} 1-0


[Site "https://www.chess.com"]

[Event "Titled Tuesday Blitz October 25 Late 2022"]
[White "Predke, Alexandr"]
[Black "Howell, David W L"]
[WhiteFideId "24107581"]
[BlackFideId "410608"]
[WhiteElo "2897"]
[BlackElo "2933"]
[Result "0-1"]
[Round "11"]
[TimeControl "180+1"]
[Date "2022.10.26"]
[WhiteClock "0:00:01"]
[BlackClock "0:00:14"]

1. Nf3 {[%clk 0:03:00]}  g6 {[%clk 0:02:57]} 2. e4 {[%clk 0:03:00]}  Bg7 {[%clk 0:02:55]} 3. d4 {[%clk 0:03:00]}  c6 {[%clk 0:02:55]} 4. Bd3 {[%clk 0:02:56]}  d5 {[%clk 0:02:55]} 5. e5 {[%clk 0:02:54]}  Nh6 {[%clk 0:02:46]} 6. O-O {[%clk 0:02:48]}  O-O {[%clk 0:02:45]} 7. Nc3 {[%clk 0:02:33]}  f6 {[%clk 0:02:24]} 8. exf6 {[%clk 0:02:28]}  exf6 {[%clk 0:02:25]} 9. Ne2 {[%clk 0:02:23]}  Nf7 {[%clk 0:02:14]} 10. h3 {[%clk 0:02:14]}  Nd6 {[%clk 0:02:06]} 11. Ng3 {[%clk 0:02:12]}  Be6 {[%clk 0:02:04]} 12. Bf4 {[%clk 0:02:10]}  Bf7 {[%clk 0:02:04]} 13. Re1 {[%clk 0:02:09]}  Re8 {[%clk 0:01:51]} 14. Qd2 {[%clk 0:02:08]}  a5 {[%clk 0:01:39]} 15. Bh6 {[%clk 0:01:37]}  Nd7 {[%clk 0:01:34]} 16. Bxg7 {[%clk 0:01:27]}  Kxg7 {[%clk 0:01:35]} 17. Qf4 {[%clk 0:01:27]}  Nf8 {[%clk 0:01:28]} 18. Nh4 {[%clk 0:01:10]}  Kg8 {[%clk 0:01:20]} 19. Qh6 {[%clk 0:01:08]}  Qc7 {[%clk 0:01:14]} 20. a4 {[%clk 0:00:28]}  Rxe1+ {[%clk 0:01:02]} 21. Rxe1 {[%clk 0:00:29]}  Re8 {[%clk 0:01:03]} 22. Rxe8 {[%clk 0:00:29]}  Bxe8 {[%clk 0:01:03]} 23. Qe3 {[%clk 0:00:16]}  Kf7 {[%clk 0:00:57]} 24. Nf3 {[%clk 0:00:15]}  Bd7 {[%clk 0:00:52]} 25. h4 {[%clk 0:00:11]}  Bg4 {[%clk 0:00:48]} 26. Nh2 {[%clk 0:00:11]}  Bc8 {[%clk 0:00:41]} 27. Qh6 {[%clk 0:00:06]}  Qb6 {[%clk 0:00:33]} 28. h5 {[%clk 0:00:06]}  Qxd4 {[%clk 0:00:31]} 29. hxg6+ {[%clk 0:00:07]}  hxg6 {[%clk 0:00:32]} 30. Nf3 {[%clk 0:00:06]}  Qxb2 {[%clk 0:00:25]} 31. Nh4 {[%clk 0:00:04]}  f5 {[%clk 0:00:21]} 32. Nf3 {[%clk 0:00:03]}  Qf6 {[%clk 0:00:15]} 33. Qf4 {[%clk 0:00:01]}  Ke7 {[%clk 0:00:14]} 0-1


[Site "https://www.chess.com"]

[Event "Titled Tuesday Blitz October 25 Late 2022"]
[White "Prydun, Andriy"]
[Black "Graif, William"]
[WhiteFideId "14145898"]
[BlackFideId "2609835"]
[WhiteElo "2163"]
[BlackElo "2205"]
[Result "1-0"]
[Round "11"]
[TimeControl "180+1"]
[Date "2022.10.26"]
[WhiteClock "0:00:07"]
[BlackClock "0:00:01"]

1. e4 {[%clk 0:03:00]}  e5 {[%clk 0:02:58]} 2. Nf3 {[%clk 0:03:00]}  Nf6 {[%clk 0:02:52]} 3. Nc3 {[%clk 0:02:59]}  Bc5 {[%clk 0:02:46]} 4. Nxe5 {[%clk 0:02:54]}  Nc6 {[%clk 0:02:46]} 5. Nxc6 {[%clk 0:02:53]}  dxc6 {[%clk 0:02:47]} 6. h3 {[%clk 0:02:36]}  Be6 {[%clk 0:02:04]} 7. d3 {[%clk 0:02:24]}  Qe7 {[%clk 0:01:47]} 8. Qe2 {[%clk 0:02:21]}  O-O-O {[%clk 0:01:40]} 9. Be3 {[%clk 0:02:21]}  Rhe8 {[%clk 0:01:29]} 10. g3 {[%clk 0:02:13]}  Bb4 {[%clk 0:00:57]} 11. Bg2 {[%clk 0:02:11]}  Qd7 {[%clk 0:00:55]} 12. f4 {[%clk 0:01:57]}  g6 {[%clk 0:00:51]} 13. a3 {[%clk 0:01:51]}  Ba5 {[%clk 0:00:47]} 14. g4 {[%clk 0:01:46]}  h5 {[%clk 0:00:45]} 15. g5 {[%clk 0:01:41]}  Bxc3+ {[%clk 0:00:40]} 16. bxc3 {[%clk 0:01:40]}  Ng8 {[%clk 0:00:33]} 17. a4 {[%clk 0:01:23]}  Kb8 {[%clk 0:00:27]} 18. Qf2 {[%clk 0:01:22]}  a6 {[%clk 0:00:27]} 19. Qg3 {[%clk 0:01:14]}  f6 {[%clk 0:00:25]} 20. O-O {[%clk 0:01:13]}  fxg5 {[%clk 0:00:20]} 21. fxg5 {[%clk 0:01:14]}  Rf8 {[%clk 0:00:20]} 22. Rf2 {[%clk 0:01:04]}  Rxf2 {[%clk 0:00:19]} 23. Bxf2 {[%clk 0:01:05]}  Rf8 {[%clk 0:00:19]} 24. Qe3 {[%clk 0:01:05]}  b6 {[%clk 0:00:17]} 25. a5 {[%clk 0:01:04]}  c5 {[%clk 0:00:17]} 26. axb6 {[%clk 0:01:03]}  cxb6 {[%clk 0:00:18]} 27. Rxa6 {[%clk 0:01:03]}  Qb7 {[%clk 0:00:17]} 28. Ra1 {[%clk 0:01:02]}  Ne7 {[%clk 0:00:16]} 29. c4 {[%clk 0:01:02]}  Nc6 {[%clk 0:00:16]} 30. e5 {[%clk 0:01:02]}  Qc7 {[%clk 0:00:15]} 31. Qe4 {[%clk 0:01:02]}  Bd7 {[%clk 0:00:15]} 32. e6 {[%clk 0:01:01]}  Re8 {[%clk 0:00:15]} 33. Qf3 {[%clk 0:00:48]}  Rxe6 {[%clk 0:00:14]} 34. Bg3 {[%clk 0:00:48]}  Rd6 {[%clk 0:00:10]} 35. Qf8+ {[%clk 0:00:48]}  Kb7 {[%clk 0:00:08]} 36. Bxd6 {[%clk 0:00:45]}  Qc8 {[%clk 0:00:06]} 37. Qf7 {[%clk 0:00:35]}  Qd8 {[%clk 0:00:05]} 38. Re1 {[%clk 0:00:33]}  Kc8 {[%clk 0:00:04]} 39. Re6 {[%clk 0:00:17]}  Qxg5 {[%clk 0:00:03]} 40. Bf4 {[%clk 0:00:14]}  Qh4 {[%clk 0:00:02]} 41. Re8+ {[%clk 0:00:12]}  Nd8 {[%clk 0:00:02]} 42. Rxd8+ {[%clk 0:00:07]}  Kxd8 {[%clk 0:00:01]} 43. Qf8+ {[%clk 0:00:05]}  Be8 {[%clk 0:00:02]} 44. Qd6+ {[%clk 0:00:06]}  Bd7 {[%clk 0:00:01]} 45. Qc7+ {[%clk 0:00:06]}  Ke8 {[%clk 0:00:01]} 46. Qe5+ {[%clk 0:00:07]}  Kd8 {[%clk 0:00:01]} 47. Bg5+ {[%clk 0:00:06]}  Qxg5 {[%clk 0:00:01]} 48. Qxg5+ {[%clk 0:00:07]}  Kc8 {[%clk 0:00:01]} 49. Qxg6 {[%clk 0:00:07]} 1-0


[Site "https://www.chess.com"]

[Event "Titled Tuesday Blitz October 25 Late 2022"]
[White "Romero Ruscalleda, Josep"]
[Black "Curtis, John"]
[WhiteFideId "2231859"]
[BlackFideId "3200256"]
[WhiteElo "2331"]
[BlackElo "2203"]
[Result "1/2-1/2"]
[Round "11"]
[TimeControl "180+1"]
[Date "2022.10.26"]
[WhiteClock "0:00:19"]
[BlackClock "0:00:04"]

1. e4 {[%clk 0:03:00]}  c5 {[%clk 0:02:58]} 2. c3 {[%clk 0:03:00]}  e6 {[%clk 0:02:57]} 3. d4 {[%clk 0:03:00]}  d5 {[%clk 0:02:56]} 4. e5 {[%clk 0:03:01]}  Bd7 {[%clk 0:02:54]} 5. Bd3 {[%clk 0:03:00]}  Qb6 {[%clk 0:02:54]} 6. dxc5 {[%clk 0:03:00]}  Bxc5 {[%clk 0:02:52]} 7. Qe2 {[%clk 0:03:00]}  a6 {[%clk 0:02:40]} 8. Nf3 {[%clk 0:03:00]}  Bb5 {[%clk 0:02:30]} 9. O-O {[%clk 0:02:59]}  Bxd3 {[%clk 0:02:30]} 10. Qxd3 {[%clk 0:02:59]}  Nc6 {[%clk 0:02:23]} 11. b4 {[%clk 0:02:57]}  Bf8 {[%clk 0:02:23]} 12. a4 {[%clk 0:02:56]}  Qc7 {[%clk 0:02:23]} 13. Re1 {[%clk 0:02:54]}  Nge7 {[%clk 0:02:21]} 14. Bf4 {[%clk 0:02:51]}  Ng6 {[%clk 0:02:19]} 15. Bg3 {[%clk 0:02:51]}  h5 {[%clk 0:02:18]} 16. h3 {[%clk 0:02:50]}  h4 {[%clk 0:02:17]} 17. Bh2 {[%clk 0:02:50]}  Rh5 {[%clk 0:02:17]} 18. Qe2 {[%clk 0:02:34]}  Rc8 {[%clk 0:02:12]} 19. Na3 {[%clk 0:02:24]}  Rh8 {[%clk 0:02:04]} 20. Rac1 {[%clk 0:02:20]}  Nxb4 {[%clk 0:01:55]} 21. Ng5 {[%clk 0:01:45]}  Nc6 {[%clk 0:01:32]} 22. Nc2 {[%clk 0:01:42]}  Nge7 {[%clk 0:01:26]} 23. Qf3 {[%clk 0:01:26]}  Nf5 {[%clk 0:01:19]} 24. Bf4 {[%clk 0:01:23]}  Be7 {[%clk 0:01:17]} 25. Qg4 {[%clk 0:01:12]}  Bxg5 {[%clk 0:01:16]} 26. Qxg5 {[%clk 0:01:11]}  g6 {[%clk 0:00:48]} 27. Nd4 {[%clk 0:01:02]}  Nfxd4 {[%clk 0:00:40]} 28. cxd4 {[%clk 0:01:01]}  Qe7 {[%clk 0:00:37]} 29. Qg4 {[%clk 0:00:59]}  Rh5 {[%clk 0:00:32]} 30. Rc2 {[%clk 0:00:45]}  Rd8 {[%clk 0:00:20]} 31. Bd2 {[%clk 0:00:38]}  Kf8 {[%clk 0:00:19]} 32. Rb1 {[%clk 0:00:32]}  Kg8 {[%clk 0:00:19]} 33. Rcb2 {[%clk 0:00:28]}  Rd7 {[%clk 0:00:19]} 34. a5 {[%clk 0:00:24]}  Na7 {[%clk 0:00:17]} 35. Bb4 {[%clk 0:00:24]}  Qg5 {[%clk 0:00:16]} 36. Qe2 {[%clk 0:00:22]}  Nb5 {[%clk 0:00:15]} 37. Bc5 {[%clk 0:00:20]}  Rc7 {[%clk 0:00:15]} 38. Rxb5 {[%clk 0:00:20]}  axb5 {[%clk 0:00:14]} 39. Qxb5 {[%clk 0:00:21]}  Kh7 {[%clk 0:00:14]} 40. Qe8 {[%clk 0:00:21]}  Qf4 {[%clk 0:00:07]} 41. Bd6 {[%clk 0:00:20]}  Rc2 {[%clk 0:00:06]} 42. Rf1 {[%clk 0:00:17]}  Rc1 {[%clk 0:00:05]} 43. Be7 {[%clk 0:00:16]}  Rxf1+ {[%clk 0:00:05]} 44. Kxf1 {[%clk 0:00:16]}  Rf5 {[%clk 0:00:05]} 45. f3 {[%clk 0:00:16]}  Qc1+ {[%clk 0:00:05]} 46. Kf2 {[%clk 0:00:16]}  Qd2+ {[%clk 0:00:04]} 47. Kg1 {[%clk 0:00:16]}  Qe3+ {[%clk 0:00:04]} 48. Kh2 {[%clk 0:00:17]}  Qf4+ {[%clk 0:00:04]} 49. Kh1 {[%clk 0:00:17]}  Qc1+ {[%clk 0:00:04]} 50. Kh2 {[%clk 0:00:18]}  Qf4+ {[%clk 0:00:04]} 51. Kh1 {[%clk 0:00:18]}  Qc1+ {[%clk 0:00:04]} 52. Kh2 {[%clk 0:00:19]}  Qf4+ {[%clk 0:00:04]} 1/2-1/2


[Site "https://www.chess.com"]

[Event "Titled Tuesday Blitz October 25 Late 2022"]
[White "Rose, Felix"]
[Black "Lindholt, Malik"]
[WhiteFideId "5105722"]
[BlackFideId "1404490"]
[WhiteElo "2039"]
[BlackElo "2017"]
[Result "0-1"]
[Round "11"]
[TimeControl "180+1"]
[Date "2022.10.26"]
[WhiteClock "0:00:24"]
[BlackClock "0:00:06"]

1. e4 {[%clk 0:02:59]}  c5 {[%clk 0:02:59]} 2. Nf3 {[%clk 0:02:59]}  g6 {[%clk 0:02:58]} 3. d4 {[%clk 0:02:59]}  cxd4 {[%clk 0:02:59]} 4. Qxd4 {[%clk 0:02:59]}  Nf6 {[%clk 0:02:58]} 5. Nc3 {[%clk 0:02:59]}  Nc6 {[%clk 0:02:58]} 6. Qa4 {[%clk 0:02:59]}  d6 {[%clk 0:02:55]} 7. e5 {[%clk 0:02:59]}  dxe5 {[%clk 0:02:55]} 8. Nxe5 {[%clk 0:03:00]}  Bd7 {[%clk 0:02:44]} 9. Nxd7 {[%clk 0:02:59]}  Nxd7 {[%clk 0:02:44]} 10. Bb5 {[%clk 0:02:56]}  Bg7 {[%clk 0:02:44]} 11. Bd2 {[%clk 0:02:43]}  Nd4 {[%clk 0:02:21]} 12. Bxd7+ {[%clk 0:02:32]}  Qxd7 {[%clk 0:02:21]} 13. Qxd7+ {[%clk 0:02:32]}  Kxd7 {[%clk 0:02:21]} 14. O-O-O {[%clk 0:02:32]}  Kc6 {[%clk 0:02:16]} 15. Be3 {[%clk 0:02:28]}  Rhd8 {[%clk 0:02:13]} 16. Rd3 {[%clk 0:02:25]}  Nf5 {[%clk 0:02:10]} 17. Rxd8 {[%clk 0:02:18]}  Rxd8 {[%clk 0:02:08]} 18. Bd2 {[%clk 0:02:16]}  a6 {[%clk 0:02:00]} 19. h4 {[%clk 0:02:14]}  h5 {[%clk 0:01:58]} 20. g3 {[%clk 0:02:13]}  Bd4 {[%clk 0:01:55]} 21. Nd1 {[%clk 0:02:10]}  e6 {[%clk 0:01:44]} 22. c3 {[%clk 0:02:07]}  Bc5 {[%clk 0:01:42]} 23. Kc2 {[%clk 0:02:06]}  b5 {[%clk 0:01:34]} 24. Re1 {[%clk 0:02:04]}  Rd5 {[%clk 0:01:31]} 25. Re4 {[%clk 0:02:01]}  Nd6 {[%clk 0:01:30]} 26. Re2 {[%clk 0:01:49]}  Nc4 {[%clk 0:01:25]} 27. Bc1 {[%clk 0:01:43]}  Bb6 {[%clk 0:01:00]} 28. b3 {[%clk 0:01:40]}  Nd6 {[%clk 0:00:59]} 29. Be3 {[%clk 0:01:38]}  Bc7 {[%clk 0:00:55]} 30. Bf4 {[%clk 0:01:34]}  Nf5 {[%clk 0:00:50]} 31. Bxc7 {[%clk 0:01:31]}  Kxc7 {[%clk 0:00:51]} 32. Ne3 {[%clk 0:01:30]}  Nxe3+ {[%clk 0:00:50]} 33. Rxe3 {[%clk 0:01:31]}  Kc6 {[%clk 0:00:50]} 34. f4 {[%clk 0:01:24]}  Kd6 {[%clk 0:00:49]} 35. Rd3 {[%clk 0:01:24]}  e5 {[%clk 0:00:49]} 36. fxe5+ {[%clk 0:01:23]}  Kxe5 {[%clk 0:00:49]} 37. Re3+ {[%clk 0:01:18]}  Kd6 {[%clk 0:00:48]} 38. Rf3 {[%clk 0:01:16]}  f5 {[%clk 0:00:44]} 39. c4 {[%clk 0:01:13]}  bxc4 {[%clk 0:00:41]} 40. bxc4 {[%clk 0:01:14]}  Re5 {[%clk 0:00:42]} 41. Ra3 {[%clk 0:01:09]}  a5 {[%clk 0:00:41]} 42. Rb3 {[%clk 0:00:54]}  Re2+ {[%clk 0:00:38]} 43. Kd3 {[%clk 0:00:49]}  Rxa2 {[%clk 0:00:30]} 44. Rb6+ {[%clk 0:00:49]}  Ke5 {[%clk 0:00:29]} 45. Rxg6 {[%clk 0:00:48]}  Ra3+ {[%clk 0:00:27]} 46. Kc2 {[%clk 0:00:48]}  Rf3 {[%clk 0:00:24]} 47. c5 {[%clk 0:00:47]}  Rf2+ {[%clk 0:00:20]} 48. Kb3 {[%clk 0:00:46]}  Rf3+ {[%clk 0:00:19]} 49. Ka4 {[%clk 0:00:45]}  Rc3 {[%clk 0:00:19]} 50. Kb5 {[%clk 0:00:43]}  a4 {[%clk 0:00:19]} 51. Kb4 {[%clk 0:00:37]}  Rc2 {[%clk 0:00:16]} 52. Ra6 {[%clk 0:00:36]}  Kd5 {[%clk 0:00:15]} 53. Rd6+ {[%clk 0:00:36]}  Ke4 {[%clk 0:00:13]} 54. c6 {[%clk 0:00:36]}  Kf3 {[%clk 0:00:11]} 55. Kxa4 {[%clk 0:00:35]}  Kxg3 {[%clk 0:00:11]} 56. Kb5 {[%clk 0:00:35]}  f4 {[%clk 0:00:09]} 57. Rd7 {[%clk 0:00:30]}  f3 {[%clk 0:00:08]} 58. c7 {[%clk 0:00:29]}  f2 {[%clk 0:00:07]} 59. Rg7+ {[%clk 0:00:29]}  Kxh4 {[%clk 0:00:05]} 60. Rf7 {[%clk 0:00:29]}  Kg3 {[%clk 0:00:04]} 61. Rg7+ {[%clk 0:00:28]}  Kh4 {[%clk 0:00:04]} 62. Rf7 {[%clk 0:00:29]}  Rxc7 {[%clk 0:00:03]} 63. Rxf2 {[%clk 0:00:29]}  Kg3 {[%clk 0:00:04]} 64. Rf8 {[%clk 0:00:29]}  h4 {[%clk 0:00:03]} 65. Rg8+ {[%clk 0:00:30]}  Kf2 {[%clk 0:00:03]} 66. Rf8+ {[%clk 0:00:29]}  Kg2 {[%clk 0:00:03]} 67. Rg8+ {[%clk 0:00:29]}  Kh2 {[%clk 0:00:04]} 68. Kb4 {[%clk 0:00:29]}  h3 {[%clk 0:00:03]} 69. Kb3 {[%clk 0:00:29]}  Kh1 {[%clk 0:00:04]} 70. Kb2 {[%clk 0:00:27]}  h2 {[%clk 0:00:04]} 71. Kb3 {[%clk 0:00:26]}  Rc1 {[%clk 0:00:03]} 72. Kb2 {[%clk 0:00:22]}  Rg1 {[%clk 0:00:03]} 73. Rh8 {[%clk 0:00:22]}  Rg2+ {[%clk 0:00:03]} 74. Kb3 {[%clk 0:00:21]}  Kg1 {[%clk 0:00:03]} 75. Ra8 {[%clk 0:00:20]}  h1=Q {[%clk 0:00:02]} 76. Ra1+ {[%clk 0:00:20]}  Kh2 {[%clk 0:00:02]} 77. Rxh1+ {[%clk 0:00:21]}  Kxh1 {[%clk 0:00:02]} 78. Kc3 {[%clk 0:00:22]}  Kh2 {[%clk 0:00:03]} 79. Kd4 {[%clk 0:00:23]}  Re2 {[%clk 0:00:02]} 80. Kd3 {[%clk 0:00:23]}  Re8 {[%clk 0:00:03]} 81. Kd4 {[%clk 0:00:24]}  Kg3 {[%clk 0:00:03]} 82. Kd5 {[%clk 0:00:24]}  Kf4 {[%clk 0:00:04]} 83. Kd6 {[%clk 0:00:25]}  Re2 {[%clk 0:00:04]} 84. Kd5 {[%clk 0:00:25]}  Re1 {[%clk 0:00:04]} 85. Kd4 {[%clk 0:00:25]}  Rd1+ {[%clk 0:00:04]} 86. Kc3 {[%clk 0:00:26]}  Ke3 {[%clk 0:00:05]} 87. Kc2 {[%clk 0:00:23]}  Rd8 {[%clk 0:00:05]} 88. Kc3 {[%clk 0:00:23]}  Rc8+ {[%clk 0:00:05]} 89. Kb4 {[%clk 0:00:24]}  Kd4 {[%clk 0:00:05]} 90. Kb5 {[%clk 0:00:24]}  Rc1 {[%clk 0:00:05]} 91. Kb6 {[%clk 0:00:24]}  Kd5 {[%clk 0:00:05]} 92. Kb7 {[%clk 0:00:25]}  Kd6 {[%clk 0:00:05]} 93. Kb8 {[%clk 0:00:25]}  Kd7 {[%clk 0:00:05]} 94. Ka7 {[%clk 0:00:23]}  Rb1 {[%clk 0:00:05]} 95. Ka6 {[%clk 0:00:23]}  Kc6 {[%clk 0:00:05]} 96. Ka5 {[%clk 0:00:23]}  Rb8 {[%clk 0:00:06]} 97. Ka4 {[%clk 0:00:23]}  Kc5 {[%clk 0:00:06]} 98. Ka3 {[%clk 0:00:24]}  Kc4 {[%clk 0:00:06]} 99. Ka2 {[%clk 0:00:25]}  Kc3 {[%clk 0:00:07]} 100. Ka3 {[%clk 0:00:24]}  Ra8# {[%clk 0:00:06]} 0-1


[Site "https://www.chess.com"]

[Event "Titled Tuesday Blitz October 25 Late 2022"]
[White "Sailer, Mike"]
[Black "Rios Escobar, Adan"]
[WhiteFideId "2012901"]
[BlackFideId "3403645"]
[WhiteElo "2109"]
[BlackElo "2368"]
[Result "0-1"]
[Round "11"]
[TimeControl "180+1"]
[Date "2022.10.26"]
[WhiteClock "0:00:29"]
[BlackClock "0:00:46"]

1. d4 {[%clk 0:03:00]}  Nf6 {[%clk 0:02:52]} 2. Bf4 {[%clk 0:02:59]}  g6 {[%clk 0:02:51]} 3. Nc3 {[%clk 0:02:58]}  d5 {[%clk 0:02:52]} 4. Qd2 {[%clk 0:02:55]}  c6 {[%clk 0:02:51]} 5. O-O-O {[%clk 0:02:53]}  b5 {[%clk 0:02:48]} 6. f3 {[%clk 0:02:48]}  Qa5 {[%clk 0:02:39]} 7. Kb1 {[%clk 0:02:41]}  b4 {[%clk 0:02:26]} 8. Nxd5 {[%clk 0:02:37]}  Nxd5 {[%clk 0:02:21]} 9. Be5 {[%clk 0:02:32]}  f6 {[%clk 0:02:21]} 10. Bg3 {[%clk 0:02:24]}  Be6 {[%clk 0:02:20]} 11. a3 {[%clk 0:02:12]}  h5 {[%clk 0:02:06]} 12. e4 {[%clk 0:02:09]}  Bh6 {[%clk 0:02:05]} 13. f4 {[%clk 0:01:52]}  Nc3+ {[%clk 0:01:57]} 14. bxc3 {[%clk 0:01:48]}  bxc3 {[%clk 0:01:58]} 15. Qc1 {[%clk 0:01:34]}  Nd7 {[%clk 0:01:57]} 16. d5 {[%clk 0:01:08]}  Rb8+ {[%clk 0:01:55]} 17. Ka1 {[%clk 0:01:08]}  Rb2 {[%clk 0:01:50]} 18. Qxb2 {[%clk 0:01:03]}  cxb2+ {[%clk 0:01:50]} 19. Kxb2 {[%clk 0:01:04]}  cxd5 {[%clk 0:01:48]} 20. exd5 {[%clk 0:01:01]}  Bxd5 {[%clk 0:01:24]} 21. Bd3 {[%clk 0:01:01]}  O-O {[%clk 0:01:23]} 22. Nf3 {[%clk 0:01:00]}  Rb8+ {[%clk 0:01:23]} 23. Kc1 {[%clk 0:00:59]}  Bxf3 {[%clk 0:01:19]} 24. gxf3 {[%clk 0:00:59]}  h4 {[%clk 0:01:18]} 25. Bxg6 {[%clk 0:00:56]}  hxg3 {[%clk 0:01:15]} 26. hxg3 {[%clk 0:00:56]}  Qxa3+ {[%clk 0:01:12]} 27. Kd2 {[%clk 0:00:54]}  Kg7 {[%clk 0:01:08]} 28. Bd3 {[%clk 0:00:49]}  Nc5 {[%clk 0:01:02]} 29. Ke2 {[%clk 0:00:42]}  Qc3 {[%clk 0:00:51]} 30. Rd2 {[%clk 0:00:40]}  Rb2 {[%clk 0:00:49]} 31. Bf5 {[%clk 0:00:36]}  Nb3 {[%clk 0:00:45]} 32. Rd7 {[%clk 0:00:31]}  Nd4+ {[%clk 0:00:45]} 33. Rxd4 {[%clk 0:00:29]}  Qxd4 {[%clk 0:00:46]} 0-1


[Site "https://www.chess.com"]